Cogmind - Beta 17 @@@ ROGUE MODE // 2026.07.11 @ 08:43:57 Player: ldi (hl). (hl) Result: Smashed by cave-in Performance ------------- Evolutions (0) 0 Regions Visited (3) 600 Robots Destroyed (10) 50 Value Destroyed (318) 318 Prototype IDs (0) 0 Alien Tech Used (0) 0 Bonus (0) 0 TOTAL SCORE: 968 Bonus ------- None Cogmind --------- Core Integrity 0/250 Matter 300/300 Energy 198/200 System Corruption 5% Temperature Cool (1) Movement Core (550) Ox10 Location -10/Subcaves Parts ------- > --- POWER (1) -------- Subdweller Power Source > --- PROPULSION (2) --- (None) > --- UTILITY (2) ------ Disposable Heat Sink Large Storage Unit > --- WEAPON (2) ------- Medium Laser Subdweller Machine Gun > --- INVENTORY (15) --- Light Armor Plating Scrap Shield Fragment (47) Scrap Shield Fragment (47) Scrap Shield Fragment (39) Scrap Shield Fragment (20) Peak State ------------ > --- POWER ------------ Subdweller Power Source > --- PROPULSION ------- Aluminum Leg > --- UTILITY ---------- Disposable Heat Sink Large Storage Unit > --- WEAPON ----------- Medium Laser Subdweller Machine Gun > --- INVENTORY -------- Light Armor Plating [Rating: 9] Favorites ----------- Power Light Ion Engine Engine Light Ion Engine Propulsion Aluminum Leg Leg Aluminum Leg Utility Large Storage Unit Device Disposable Heat Sink Storage Large Storage Unit Protection Light Armor Plating Weapon Medium Laser Energy Gun Medium Laser Ballistic Gun Light Assault Rifle Build | -11 -10 -10 -10 ------- Run | Yrd Mat Min Sub Slots Evolved . | . . . . Power . | . . . . Propulsion . | . . . . Utility . | . . . . Weapon . | . . . . Parts Attached 15 | 6 5 . 4 Power 3 | 1 1 . 1 Engine 3 | 1 1 . 1 Core . | . . . . Reactor . | . . . . Propulsion 3 | 2 1 . . Treads . | . . . . Leg 3 | 2 1 . . Wheel . | . . . . Hover . | . . . . Flight . | . . . . Utility 5 | 1 3 . 1 Device 1 | . . . 1 Storage 2 | 1 1 . . Processor . | . . . . Hackware . | . . . . Protection 2 | . 2 . . Artifact . | . . . . Weapon 4 | 2 . . 2 Energy Gun 2 | 2 . . . Energy Cannon . | . . . . Ballistic Gun 2 | . . . 2 Ballistic Cannon . | . . . . Launcher . | . . . . Special Weapon . | . . . . Impact Weapon . | . . . . Slashing Weapon . | . . . . Piercing Weapon . | . . . . Special Melee Weapon . | . . . . Unidentified Prototypes . | . . . . Parts Lost 9 | . 3 . 6 Power 2 | . 1 . 1 Propulsion 3 | . . . 3 Utility 2 | . 1 . 1 Weapon 2 | . 1 . 1 Highest Loss Streak 3 | . 2 . 3 To Critical Strikes . | . . . . Average Backups 1 | . 2 2 1 Power . | . . . . Propulsion . | . . 1 . Utility 1 | . 1 1 1 Weapon . | . . . . Tool/Special . | . . . . Unused Backups 1 | . . . 1 Power . | . . . . Propulsion . | . . . . Utility 1 | . . . 1 Weapon . | . . . . Tool/Special . | . . . . Average Slot Usage (%) 84 | . 85 85 81 Engine 12 | . 12 14 10 Leg 25 | . 28 28 19 Storage 14 | . 14 14 14 Protection 10 | . 9 14 7 Energy Gun 16 | . 20 14 14 Ballistic Gun 3 | . . . 10 Peak Build Rating 9 | 6 7 6 9 Average Rating 6 | 4 6 6 6 On Entrance 4 | . 6 6 6 Avg Prop Armor Cover (%) . | . . . . Naked Turns . | . . . . Heaviest Build 32 | 14 32 28 32 Greatest Support 20 | 20 20 20 20 Greatest Overweight (x) 3 | 1 1 1 3 Average Overweight (x) . | . . 1 1 Largest Inventory Capacity 15 | 8 15 15 15 Average Capacity 14 | 7 13 15 15 Most Carried 5 | 1 4 2 5 Average Carried 1 | . 2 2 1 Final Capacity 15 | 8 15 15 15 Final Carried 5 | 1 2 2 5 Class Distribution -------------------- 100% | Mutant Dominant Class ---------------- Mutant | -10/Materials Mutant | -10/Mines Mutant | -10/Subcaves Resources | -11 -10 -10 -10 ----------- Run | Yrd Mat Min Sub Matter Collected 362 | 260 41 . 61 Remotely . | . . . . Salvage Created 331 | . 187 . 144 Parts 19 | . 9 . 10 Haulers Intercepted . | . . . . Recyclers Shooed 1 | . 1 . . Parts Field Recycled . | . . . . Retrieved Matter . | . . . . Parts Self-Destructed 12 | . . . 12 Prevented . | . . . . Parts Restored . | . . . . Kills | -11 -10 -10 -10 ------- Run | Yrd Mat Min Sub Combat Hostiles Destroyed 9 | . 4 . 5 Guns 9 | . 4 . 5 Classes Destroyed 4 | . 2 . 2 Watcher 1 | . 1 . . Swarmer 2 | . . . 2 Grunt 4 | . 4 . . Subdweller 3 | . . . 3 Best Kill Streak 2 | . 2 . 2 Combat Bots Only 2 | . 2 . 2 Max Kills in Single Turn 1 | . 1 . 1 Gunslinging . | . . . . Exploded . | . . . . Melee . | . . . . Uniques/NPCs Destroyed . | . . . . Combat | -11 -10 -10 -10 -------- Run | Yrd Mat Min Sub Hostile Shots Fired 72 | . 38 . 34 Missed 16 | . 10 . 6 Hits 56 | . 28 . 28 Projectile 56 | . 28 . 28 AOE 3 | . . . 3 Critical Strikes 1 | . 1 . . Damage Taken 1200 | . 432 . 768 Core 277 | . 64 . 213 Absorbed by Shields . | . . . . Core Remaining (%) 100 | 100 . . . Volleys Fired 56 | . 29 . 27 Largest 2 | . 2 . 2 Hottest 90 | . 90 . 70 Shots Fired 80 | . 36 . 44 Gun 80 | . 36 . 44 Cannon . | . . . . Launcher . | . . . . Special . | . . . . Kinetic 17 | . . . 17 Thermal 56 | . 29 . 27 Explosive . | . . . . Electromagnetic 7 | . 7 . . Robot Hit Streak 12 | . 7 . 12 Robot Miss Streak 3 | . 3 . 2 Penetration Max . | . . . . Secondary Targets 1 | . . . 1 Max Gunslinging Chain 1 | . . . 1 Shots Hit Robots 55 | . 25 . 30 Core Hits 24 | . 13 . 11 Critical Kills . | . . . . Critical Parts Destroyed . | . . . . Critical Strikes 4 | . . . 4 Burn 4 | . . . 4 Melee Attacks . | . . . . Impact . | . . . . Slashing . | . . . . Piercing . | . . . . Sneak Attacks . | . . . . Combat Hostiles . | . . . . Follow-up Attacks . | . . . . Damage Inflicted 723 | . 408 . 315 Guns 643 | . 328 . 315 Cannons . | . . . . Explosions 73 | . 73 . . Melee . | . . . . Ramming 7 | . 7 . . Kinetic 108 | . . . 108 Thermal 518 | . 311 . 207 Explosive . | . . . . Electromagnetic 90 | . 90 . . Impact . | . . . . Slashing . | . . . . Piercing . | . . . . Highest Corruption . | . . . . Average Corruption . | . . . . Corruption Purged . | . . . . Corruption Blocked . | . . . . Overload Shots . | . . . . Overflow Damage . | . . . . Projectiles . | . . . . Explosions . | . . . . Melee . | . . . . Knockbacks . | . . . . Impact . | . . . . Kinetic . | . . . . Secondary . | . . . . Self-Inflicted Damage 44 | . 44 . . Shots 1 | . 1 . . Rammed . | . . . . Targets Rammed 3 | . 3 . . Kicked 3 | . 3 . . Crushed . | . . . . Highest Temperature 264 | . 264 . . Average Temperature 82 | . 82 . . Received Heat Transfer 237 | . 237 . . Siege Activations . | . . . . Martial Activations . | . . . . Shielding Activations . | . . . . Robots Disrupted . | . . . . Combat Hostiles . | . . . . Robots Corrupted . | . . . . Combat Hostiles . | . . . . Parts Fried . | . . . . Impact Corruptions . | . . . . Robots Melted . | . . . . Combat Hostiles . | . . . . Parts Melted 1 | . 1 . . Heat Transferred 1728 | . 803 . 925 Parts Sabotaged . | . . . . Parts Stolen . | . . . . Parts Stripped . | . . . . Power Chain Reactions 1 | . 1 . . Alert | -11 -10 -10 -10 ------- Run | Yrd Mat Min Sub Maximum Alert Level . | . . . . Low Security (%) 100 | 100 100 100 . Level 1 . | . . . . Level 2 . | . . . . Level 3 . | . . . . Level 4 . | . . . . Level 5 . | . . . . High Security . | . . . . Max Security . | . . . . Peak Influence 40 | . 40 . . Initial . | . . . . Average 7 | . 12 . . Influence Increases 208 | . 164 . 44 Destroy 0b10 Robot/C 120 | . 80 . 40 Destroy 0b10 Robot/NC 5 | . 5 . . Destroy Leader 22 | . 22 . . Allied During Kill 4 | . . . 4 Successful Hack 5 | . 5 . . Destroy Structure 7 | . 7 . . Lose Combat Pursuer 45 | . 45 . . Influence Decreases 208 | . 164 . 44 Time Decay 155 | . 135 . 20 Lost Part 33 | . 29 . 4 Lost Ally 20 | . . . 20 Squads Dispatched 1 | . 1 . . Investigation . | . . . . Extermination . | . . . . Reinforcement 1 | . 1 . . Assault . | . . . . Garrison . | . . . . Intercept . | . . . . Searches Triggered . | . . . . Construction Impeded . | . . . . Haulers Reinforced . | . . . . Active Scanning Responses . | . . . . Cargo Convoy Interrupts . | . . . . Stealth | -11 -10 -10 -10 --------- Run | Yrd Mat Min Sub Distress Signals 1 | . 1 . . Communications Jammed . | . . . . Distress Signals . | . . . . Times Spotted 16 | . 8 . 8 Peak Tracking Total 3 | . 3 . 3 Tactical Retreats 3 | . 3 . . Traps | -11 -10 -10 -10 ------- Run | Yrd Mat Min Sub Traps Triggered . | . . . . Indirectly . | . . . . Trap Hack Attempts . | . . . . Triggered . | . . . . Disarmed . | . . . . Reprogrammed . | . . . . Reused . | . . . . Traps Extracted . | . . . . Installed . | . . . . Triggered . | . . . . Machines | -11 -10 -10 -10 ---------- Run | Yrd Mat Min Sub Machines Disabled 1 | . 1 . . Max in Single Turn 1 | . 1 . . Machines Repaired . | . . . . Machines Dismantled . | . . . . Machines Sabotaged . | . . . . Overloaded Fab Kills . | . . . . Hacking | -11 -10 -10 -10 --------- Run | Yrd Mat Min Sub Machines Accessed 1 | . 1 . . Terminals 1 | . 1 . . Fabricators . | . . . . Repair Stations . | . . . . Recycling Units . | . . . . Scanalyzers . | . . . . Garrison Access . | . . . . Total Hacks 4 | . 4 . . Successful 1 | . 1 . . Failed 3 | . 3 . . Catastrophic 1 | . 1 . . Database Lockouts . | . . . . Manual 4 | . 4 . . Terminals 4 | . 4 . . Fabricators . | . . . . Repair Stations . | . . . . Recycling Units . | . . . . Scanalyzers . | . . . . Garrison Access . | . . . . Terminal Hacks . | . . . . Fabricator Hacks . | . . . . Repair Station Hacks . | . . . . Recycling Unit Hacks . | . . . . Scanalyzer . | . . . . Garrison Access Hacks . | . . . . Unauthorized Hacks 1 | . 1 . . Terminals 1 | . 1 . . Botnet 1 | . 1 . . Fabricators . | . . . . Repair Stations . | . . . . Recycling Units . | . . . . Scanalyzers . | . . . . Garrison Access . | . . . . Data Cores Recovered . | . . . . Used . | . . . . Hacking Detections 1 | . 1 . . Full Trace Events 1 | . 1 . . Feedback Events . | . . . . Feedback Blocked . | . . . . Robot Schematics Acquired . | . . . . Robots Built . | . . . . Authchips . | . . . . Time . | . . . . Total Robot Build Rating . | . . . . Part Schematics Acquired . | . . . . Parts Built . | . . . . Authchips . | . . . . Time . | . . . . Total Part Build Rating . | . . . . Part Studies Acquired . | . . . . Parts Repaired . | . . . . Time . | . . . . Parts Recycled . | . . . . Recycled Matter . | . . . . Retrieved Matter . | . . . . Retrieved Components . | . . . . Parts Scanalyzed . | . . . . Part Schematics Acquired . | . . . . Parts Damaged . | . . . . Bothacking | -11 -10 -10 -10 ------------ Run | Yrd Mat Min Sub Used RIF Installer . | . . . . Robots Hacked . | . . . . Non-combat . | . . . . Combat . | . . . . Robot Hacks Applied . | . . . . Relay Couplers Released . | . . . . Fabnet Peak Effective % . | . . . . Robots Rewired . | . . . . Allies Hacked . | . . . . Hacks Repelled . | . . . . Allies | -11 -10 -10 -10 -------- Run | Yrd Mat Min Sub Total Allies 2 | . . 2 . Largest Group 2 | . . 2 2 Highest-Rated Group 40 | . . 40 40 Highest-Rated Ally 31 | . . 31 31 Total Orders . | . . . . Ally Attacks 5 | . . . 5 Total Damage 83 | . . . 83 Kills . | . . . . Allies Corrupted . | . . . . Allies Melted . | . . . . Intel | -11 -10 -10 -10 ------- Run | Yrd Mat Min Sub Active Infowar (turns) . | . . . . Robot Analysis Total . | . . . . Derelict Logs Recovered 1 | . . 1 . Drone Launches . | . . . . Drone Recoveries . | . . . . Exploration | -11 -10 -10 -10 ------------- Run | Yrd Mat Min Sub Turns Passed 779 | 49 359 165 206 Spaces Moved 323 | 36 150 86 51 Core 5 | 5 . . . Treads . | . . . . Legs 318 | 31 150 86 51 Wheels . | . . . . Hover . | . . . . Flight . | . . . . Fastest Speed 50 | 50 120 190 190 Average Speed 181 | 111 169 190 254 Slowest Speed 330 | 120 190 190 330 Overloaded Moves . | . . . . Propulsion Burnouts . | . . . . Robots Hopped . | . . . . Potential Cave-ins 3 | . . . 3 Cave-ins Triggered 2 | . . . 2 Exploration Rate (%) 13 | 4 25 18 6 Regions Visited 3 Branch Regions 2 Pre-discovered Areas . | . . . . Known Exits Taken . | . . . . Unknown Exits Taken 3 | 1 1 1 . Scrap Searched . | . . . . Spaces Dug . | . . . . Terrain Destroyed 7 | . 7 . . Melee . | . . . . Projectile . | . . . . AOE 7 | . 7 . . Terrain Rammed . | . . . . Walls Destroyed . | . . . . Machines Disabled . | . . . . Actions | -11 -10 -10 -10 --------- Run | Yrd Mat Min Sub Total 432 | 42 216 88 86 Wait 29 | . 26 3 . Move 319 | 35 149 85 50 Hop . | . . . . Pick Up 7 | 1 2 . 4 Fast Attach 12 | 6 2 . 4 Attach 3 | . 2 . 1 Detach 1 | . 1 . . Swap 1 | . 1 . . Drop 1 | . 1 . . Fire 56 | . 29 . 27 Melee . | . . . . Ram . | . . . . Kick 3 | . 3 . . Crush . | . . . . Escape Stasis . | . . . . Rewire . | . . . . Trap . | . . . . Miscellaneous . | . . . . Route ------- -11/Scrapyard -10/Materials -10/Mines (discovered 2 exits: [*Mat] / [*Sub]) -10/Subcaves History --------- Turn | Location | Event 9 | -11/Scrapyard | Discovered new exit (range 15) 50 | -11/Scrapyard | Entered Materials 195 | -10/Materials | Discovered new exit (range 8) 302 | -10/Materials | Build established: Mutant 409 | -10/Materials | Entered Mines 434 | -10/Mines | Learned 8 Materials zone layouts 491 | -10/Mines | Discovered new exit (range 7) 522 | -10/Mines | Discovered new exit (range 11) 574 | -10/Mines | Entered Subcaves 574 | -10/Subcaves | Accompanied by 2 allies 579 | -10/Subcaves | Led the pair of lost Derelicts to an unsafe place 627 | -10/Subcaves | Ambushed by Subdweller buried in earth 652 | -10/Subcaves | Core integrity fell below 50% 662 | -10/Subcaves | Lost 3 allies 662 | -10/Subcaves | Core integrity fell below 20% 696 | -10/Subcaves | Crushed by falling debris 720 | -10/Subcaves | Lost 3 parts (1n1u1w) 780 | -10/Subcaves | Crushed by falling debris 780 | -10/Subcaves | Smashed by cave-in Last Messages --------------- 00686_ Lgt. Armor Plating destroyed. 00688_ Acquired 1 matter. 00688_ Subatomizers dissect the Structural Scanner. 00689_ Lgt. Assault Rifle destroyed. 00696_ The unstable cave ceiling collapses. 00696_ Crushed by falling debris. 00696_ 20 Matter crushed. 00698_ FO-QJ3(R) destroyed. 00713_ Acquired Sub. Machine Gun. 00715_ Acquired 10 matter. 00734_ Acquired Disposable Heat Sink. 00743_ Subatomizers dissect the Structural Scanner. 00756_ Subatomizers dissect the Structural Scanner, destroying it. 00762_ Acquired Scrap Shield Fragment. 00768_ Acquired 10 matter. 00774_ Acquired Scrap Shield Fragment. 00780_ The unstable cave ceiling collapses. 00780_ Crushed by falling debris. 00780_ Aluminum Leg destroyed. 00780_ System corrupted by crushing effect (+5). Map ----- +----------------------------------------------------+ | ?????????????????????????????????????????????????? | | ?????????????????????????????????????????????????? | | ?????????????????????????????????????????????????? | | ?????????????????????????????????????????????????? | | ???????????????????#?????????????????????????????? | | ??????????????????? ???? "#??????????????????????? | | ??????????????????? ???? "??????????????????????? | | ??????????????????? ??? " ?????????????????????? | | ???????????????##?? ??? ""?????????????????????? | | ???????????????# ? ??? ??#?#?????????????????? | | ??????????????## ? ### ?""# # ????????????????? | | ??????????????# ? # " ??????????????? | | ??????????????? ?# ## ; #????????????? | | ??????????????## ?# ;;;% #????????????? | | ??????????????# ## ;;; ;?????????????? | | ??????????????? ;; ;;??????????????? | | ????????????????# # ; #??##?"????????? | | ???????????????## ;;### # ##???????? | | ??????????????## ;# ???????? | | ??????????????# % ?????????? | | ??????????????# # #### #??????????? | | ??????????????##?## #?# #???????????? | | ??????????????????# #?## #?????????????? | | ??????????????????#%####;;; ;#?????????????? | | ??????????????##### ### #??????????????? | | ?????????????## ## # &@ % ;#??????????????? | | ?????????????# # #% ;#??????????????? | | ?????????????# ##??????????????? | | ?????????????# ##??????????????? | | ?????????????## ## ; ; "#??????????????? | | ??????????????## ### ; & "" #??????????????? | | ???????????????###?## # &% ""###??????????????? | | ????????????????????### #????????????????? | | ??????????????????????# #????????????????? | | ????????????????????? ## ##????????????????? | | ??????????????????? # ##?????????????????? | | ??????????????????### ### #??????????????????? | | ????????????????????# ??? #??????????????????? | | ????????????????????# ??? ??????????????????? | | ????????????????????# ??? ??????????????????? | | ???????????????????? ??? ??????????????????? | | ??????????????????? ???? ??????????????????? | | ??????????????????? ## ????? ??????????????????? | | ?????????????????? ?## ????????????????????????? | | ????????????????? ???#?????????????????????????? | | ?????????????????? ?????????????????????????????? | | ?????????????????????????????????????????????????? | | ?????????????????????????????????????????????????? | | ?????????????????????????????????????????????????? | | ?????????????????????????????????????????????????? | +----------------------------------------------------+ Best States ------------- Heat Dissipation 25 Coolant Potential 50 Energy Generation 15 Energy Capacity 250 Matter Stores 300 Matter Capacity 300 Sight Range 16 Terrain Scan Density 10 Armor Coverage 150 Evasion (%) 55 Item Schematics ----------------- None Robot Schematics ------------------ None Fabricated ------------ Nothing Repaired ---------- Nothing Studied --------- None Alien Tech Used ----------------- None Achievements -------------- None Challenges ------------ None Game ------ Seed DirtyDeflectorBeamcaster Manual? 0 Play Time 00:05:58 Cumulative 666.0 hours Start 2026.07.11 @ 08:39:33 End 2026.07.11 @ 08:43:57 Sessions 1 Manual Loads 0 Difficulty Rogue Special Mode None Game No. 444 Rogue 444 Adventurer 0 Explorer 0 Win Type - Total 38 Types 25/1/6/6/0/0/0/0/0/0 Lore% 73 Gallery% 70 Achievement% 53 Wizard Run 0 Options --------- Layout 0 ASCII 1 Keyboard 1 Movement Numpad Keybinds 0 Fullscreen 2 Font 18/Smallcaps Map View 112x70 Zoom Use 0% Tactical HUD 1 Map Filters NONE Filters NONE Steam 1 RUN: 0e9c5d9f-a7c6-4653-bf49-439e6c111fa6